[Event "European Online Club-ch-D 2021"]
[Site "Online"]
[Date "2021.03.27"]
[Round "1.13"]
[White "Bauer, Christian"]
[Black "Tokhirjonova, Gulrukhbegim"]
[Result "1-0"]
[ECO "E20"]
[WhiteElo "2639"]
[BlackElo "2362"]
[Annotator "ChessBase"]
[PlyCount "95"]
[EventDate "2021.03.27"]
[EventType "team-tourn"]
[EventCountry "NET"]
[SourceTitle "playchess.com"]
[Source "ChessBase"]
[SourceQuality "1"]
[TimeControl "900+5"]

1. c4 {[%emt 0:00:00]} e6 {[%emt 0:00:15]} 2. Nc3 {[%emt 0:00:03]} d5 {[%emt 0:00:03]} 3. d4 {[%emt 0:00:02]} Bb4 {[%emt 0:00:11]} 4. Nf3 {[%emt 0:00:23]} Nf6 {[%emt 0:00:08]} 5. g3 {[%emt 0:00:04]} O-O {[%emt 0:00:08]} 6. Bg2 {[%emt 0:00:02]} dxc4 {[%emt 0:00:02]} 7. O-O {[%emt 0:00:02]} c5 {[%emt 0:00:40]} 8. dxc5 {[%emt 0:00:11]} Bxc5 {[%emt 0:01:40]} 9. Qa4 {[%emt 0:00:42]} Nc6 {[%emt 0:00:37]} 10. Qxc4 {[%emt 0:00:04]} Be7 {[%emt 0:00:19]} 11. Rd1 {[%emt 0:00:25]} Qa5 {[%emt 0:00:02]} 12. Bd2 {[%emt 0:00:29]} Qb4 {[%emt 0:01:02]} 13. Qxb4 {[%emt 0:00:05]} Bxb4 {[%emt 0:00:03]} 14. a3 {[%emt 0:00:37]} Be7 {[%emt 0:00:33]} 15. Bf4 {[%emt 0:00:02]} Rd8 {[%emt 0:00:20]} 16. Ne5 {[%emt 0:00:13]} Bd7 {[%emt 0:00:53]} 17. Nxd7 {[%emt 0:01:24]} Rxd7 {[%emt 0:00:04]} 18. Rxd7 {[%emt 0:00:02]} Nxd7 {[%emt 0:00:03]} 19. Rd1 {[%emt 0:00:00]} Nb6 {[%emt 0:00:09]} 20. Nb5 {[%emt 0:01:06]} g5 {[%emt 0:01:08]} 21. Bc1 {[%emt 0:01:25]} a6 {[%emt 0:01:08]} 22. Nc3 {[%emt 0:02:37]} Rd8 {[%emt 0:00:34]} 23. Rxd8+ {[%emt 0:00:28]} Nxd8 {[%emt 0:00:15]} 24. Kf1 {[%emt 0:00:18]} f5 {[%emt 0:00:02]} 25. e4 {[%emt 0:00:06]} Kf7 {[%emt 0:00:10]} 26. Ke2 {[%emt 0:00:10]} Nc6 {[%emt 0:00:06]} 27. exf5 {[%emt 0:00:02]} exf5 {[%emt 0:00:02]} 28. Be3 {[%emt 0:00:06]} Nd7 {[%emt 0:00:12]} 29. Bd5+ {[%emt 0:01:42]} Kg6 {[%emt 0:00:04]} 30. Be6 {[%emt 0:00:29]} Nde5 {[%emt 0:00:46]} 31. Bc8 {[%emt 0:00:25]} Na5 {[%emt 0:01:04]} 32. Nd5 {[%emt 0:00:11]} Bd6 {[%emt 0:00:09]} 33. b4 {[%emt 0:00:19]} Nac4 {[%emt 0:00:09]} 34. Bc1 {[%emt 0:00:30]} a5 {[%emt 0:01:29]} 35. Bxb7 {[%emt 0:00:07]} axb4 {[%emt 0:00:03]} 36. axb4 {[%emt 0:00:01]} h5 {[%emt 0:00:11]} 37. Ba6 {[%emt 0:00:14]} f4 {[%emt 0:00:52]} 38. gxf4 {[%emt 0:00:05]} gxf4 {[%emt 0:00:02]} 39. Nxf4+ {[%emt 0:00:26]} Kf5 {[%emt 0:00:11]} 40. Nxh5 {[%emt 0:00:33]} Nb6 {[%emt 0:00:10]} 41. b5 {[%emt 0:00:27]} Nd5 {[%emt 0:00:13]} 42. Ng3+ {[%emt 0:00:07]} Kg6 {[%emt 0:00:09]} 43. Ne4 {[%emt 0:00:07]} Bc7 {[%emt 0:00:11]} 44. Bc8 {[%emt 0:00:10]} Kh5 {[%emt 0:00:32]} 45. Bf5 {[%emt 0:00:17]} Bb6 {[%emt 0:00:54]} 46. h3 {[%emt 0:00:30]} Ne7 {[%emt 0:00:27]} 47. Be6 {[%emt 0:00:16]} N5g6 {[%emt 0:00:14]} 48. Bg4+ {[%emt 0:00:05]} 1-0

[Event "European Online Club-ch-D 2021"]
[Site "Online"]
[Date "2021.03.27"]
[Round "1.14"]
[White "Nandhidhaa, P V"]
[Black "Pelletier, Yannick"]
[Result "1-0"]
[ECO "B12"]
[WhiteElo "2365"]
[BlackElo "2581"]
[Annotator "ChessBase"]
[PlyCount "95"]
[EventDate "2021.03.27"]
[EventType "team-tourn"]
[EventCountry "NET"]
[SourceTitle "playchess.com"]
[Source "ChessBase"]
[SourceQuality "1"]
[TimeControl "900+5"]

1. e4 {[%emt 0:00:00]} c6 {[%emt 0:00:12]} 2. d4 {[%emt 0:00:05]} d5 {[%emt 0:00:02]} 3. e5 {[%emt 0:00:04]} Bf5 {[%emt 0:00:03]} 4. h4 {[%emt 0:00:02]} h5 {[%emt 0:00:03]} 5. c4 {[%emt 0:00:04]} e6 {[%emt 0:00:03]} 6. Nc3 {[%emt 0:00:02]} Nd7 {[%emt 0:00:11]} 7. cxd5 {[%emt 0:00:04]} cxd5 {[%emt 0:00:11]} 8. Bd3 {[%emt 0:00:03]} Bxd3 {[%emt 0:00:27]} 9. Qxd3 {[%emt 0:00:04]} Nh6 {[%emt 0:02:36]} 10. Bxh6 {[%emt 0:00:04]} Rxh6 {[%emt 0:00:16]} 11. Nf3 {[%emt 0:00:02]} Be7 {[%emt 0:00:11]} 12. g3 {[%emt 0:00:07]} a6 {[%emt 0:00:47]} 13. Kf1 {[%emt 0:00:25]} Qb6 {[%emt 0:01:11]} 14. Kg2 {[%emt 0:00:30]} O-O-O {[%emt 0:01:00]} 15. Rab1 {[%emt 0:04:18]} Kb8 {[%emt 0:01:17]} 16. b4 {[%emt 0:00:14]} Rc8 {[%emt 0:00:17]} 17. b5 {[%emt 0:02:31]} a5 {[%emt 0:00:09]} 18. Na4 {[%emt 0:01:37]} Qc7 {[%emt 0:00:04]} 19. Rhc1 {[%emt 0:00:17]} Qd8 {[%emt 0:04:26]} 20. Rxc8+ {[%emt 0:00:58]} Qxc8 {[%emt 0:00:09]} 21. b6 {[%emt 0:00:04]} Qc4 {[%emt 0:01:27]} 22. Qxc4 {[%emt 0:02:56]} dxc4 {[%emt 0:00:00]} 23. Rc1 {[%emt 0:00:50]} Bd8 {[%emt 0:00:53]} 24. Ng5 {[%emt 0:00:38]} Nxb6 {[%emt 0:00:37]} 25. Nxb6 {[%emt 0:00:10]} Bxb6 {[%emt 0:00:00]} 26. Nxf7 {[%emt 0:00:06]} Rh7 {[%emt 0:00:05]} 27. Rxc4 {[%emt 0:00:03]} g6 {[%emt 0:00:06]} 28. Ng5 {[%emt 0:00:08]} Re7 {[%emt 0:00:02]} 29. Kf3 {[%emt 0:00:04]} Bc7 {[%emt 0:00:15]} 30. Ke4 {[%emt 0:00:04]} Kc8 {[%emt 0:00:09]} 31. a4 {[%emt 0:00:09]} Kd7 {[%emt 0:00:04]} 32. f4 {[%emt 0:00:06]} Re8 {[%emt 0:00:15]} 33. Nh7 {[%emt 0:00:07]} Rb8 {[%emt 0:00:07]} 34. Nf6+ {[%emt 0:00:02]} Kd8 {[%emt 0:00:01]} 35. d5 {[%emt 0:00:05]} exd5+ {[%emt 0:00:02]} 36. Nxd5 {[%emt 0:00:02]} b5 {[%emt 0:00:00]} 37. axb5 {[%emt 0:00:02]} Bb6 {[%emt 0:00:10]} 38. Rc6 {[%emt 0:00:13]} Bf2 {[%emt 0:00:04]} 39. Rd6+ {[%emt 0:00:28]} Ke8 {[%emt 0:00:04]} 40. Kf3 {[%emt 0:00:06]} Be1 {[%emt 0:00:14]} 41. Rxg6 {[%emt 0:00:03]} Kf7 {[%emt 0:00:05]} 42. Rf6+ {[%emt 0:00:02]} Kg7 {[%emt 0:00:03]} 43. f5 {[%emt 0:00:22]} Rxb5 {[%emt 0:00:05]} 44. Rg6+ {[%emt 0:00:02]} Kf8 {[%emt 0:00:04]} 45. Ke4 {[%emt 0:00:02]} a4 {[%emt 0:00:04]} 46. e6 {[%emt 0:00:01]} Bb4 {[%emt 0:00:11]} 47. f6 {[%emt 0:00:06]} a3 {[%emt 0:00:06]} 48. e7+ {[%emt 0:00:03]} 1-0

[Event "European Online Club-ch-D 2021"]
[Site "Online"]
[Date "2021.03.27"]
[Round "1.15"]
[White "Petkidis, Anthony"]
[Black "Dauletova, Gulmira"]
[Result "1/2-1/2"]
[ECO "C54"]
[WhiteElo "2401"]
[BlackElo "2285"]
[Annotator "NA"]
[PlyCount "200"]
[EventDate "2021.03.27"]
[EventType "team-tourn"]
[EventCountry "NET"]
[SourceTitle "playchess.com"]
[Source "ChessBase"]
[SourceQuality "1"]
[TimeControl "900+5"]

1. e4 {[%emt 0:00:00]} e5 {[%emt 0:00:05]} 2. Nf3 {[%emt 0:00:04]} Nc6 {[%emt 0:00:02]} 3. Bc4 {[%emt 0:00:03]} Bc5 {[%emt 0:00:03]} 4. c3 {[%emt 0:00:03]} Nf6 {[%emt 0:00:03]} 5. d3 {[%emt 0:00:03]} d6 {[%emt 0:00:01]} 6. h3 {[%emt 0:00:19]} h6 {[%emt 0:00:04]} 7. Nbd2 {[%emt 0:00:22]} O-O {[%emt 0:00:05]} 8. O-O {[%emt 0:00:10]} a5 {[%emt 0:00:06]} 9. Re1 {[%emt 0:01:23]} Be6 {[%emt 0:02:04]} 10. Bxe6 {[%emt 0:00:38]} fxe6 {[%emt 0:00:02]} 11. Nf1 {[%emt 0:00:10]} Nh5 {[%emt 0:00:36]} 12. d4 {[%emt 0:03:59]} exd4 {[%emt 0:01:49]} 13. cxd4 {[%emt 0:00:03]} Bb4 {[%emt 0:00:01]} 14. Re3 {[%emt 0:00:26]} a4 {[%emt 0:00:56]} 15. a3 {[%emt 0:02:03]} Ba5 {[%emt 0:00:02]} 16. Qxa4 {[%emt 0:00:36]} Nf4 {[%emt 0:01:04]} 17. Qd1 {[%emt 0:01:08]} Bb6 {[%emt 0:00:08]} 18. b3 {[%emt 0:00:43]} e5 {[%emt 0:00:14]} 19. Bb2 {[%emt 0:00:15]} Qf6 {[%emt 0:00:07]} 20. dxe5 {[%emt 0:02:22]} dxe5 {[%emt 0:00:08]} 21. N1h2 {[%emt 0:01:16]} Rad8 {[%emt 0:02:03]} 22. Qc2 {[%emt 0:00:05]} Bxe3 {[%emt 0:02:17]} 23. fxe3 {[%emt 0:00:00]} Ng6 {[%emt 0:00:06]} 24. b4 {[%emt 0:00:02]} Qd6 {[%emt 0:00:36]} 25. Rc1 {[%emt 0:00:18]} Rf7 {[%emt 0:00:25]} 26. b5 {[%emt 0:00:05]} Na5 {[%emt 0:00:16]} 27. Ng4 {[%emt 0:00:02]} Qd3 {[%emt 0:00:22]} 28. Qxd3 {[%emt 0:00:19]} Rxd3 {[%emt 0:00:02]} 29. Ngxe5 {[%emt 0:00:07]} Nxe5 {[%emt 0:00:02]} 30. Nxe5 {[%emt 0:00:01]} Rb3 {[%emt 0:00:56]} 31. Nxf7 {[%emt 0:00:02]} Rxb2 {[%emt 0:00:01]} 32. Rxc7 {[%emt 0:00:04]} Re2 {[%emt 0:00:16]} 33. Nd6 {[%emt 0:00:13]} Rxe3 {[%emt 0:00:11]} 34. Nxb7 {[%emt 0:00:12]} Nxb7 {[%emt 0:00:15]} 35. Rxb7 {[%emt 0:00:00]} Rxa3 {[%emt 0:00:01]} 36. Kf2 {[%emt 0:00:01]} Rb3 {[%emt 0:00:09]} 37. e5 {[%emt 0:00:03]} Kf8 {[%emt 0:00:11]} 38. Ke2 {[%emt 0:00:02]} g5 {[%emt 0:00:12]} 39. Kf2 {[%emt 0:00:16]} Ke8 {[%emt 0:00:07]} 40. Rb6 {[%emt 0:00:07]} Kf7 {[%emt 0:00:14]} 41. Rf6+ {[%emt 0:00:05]} Kg7 {[%emt 0:00:17]} 42. Rb6 {[%emt 0:00:06]} Kf7 {[%emt 0:00:07]} 43. Rxh6 {[%emt 0:00:07]} Rxb5 {[%emt 0:00:02]} 44. Rf6+ {[%emt 0:00:02]} Kg7 {[%emt 0:00:06]} 45. Rf5 {[%emt 0:00:07]} Kg6 {[%emt 0:00:02]} 46. g4 {[%emt 0:00:02]} Rb3 {[%emt 0:00:14]} 47. Rf3 {[%emt 0:00:01]} Rb2+ {[%emt 0:00:15]} 48. Ke3 {[%emt 0:00:02]} Rb1 {[%emt 0:00:59]} 49. Kd4 {[%emt 0:00:05]} Rd1+ {[%emt 0:00:19]} 50. Kc5 {[%emt 0:00:04]} Rd2 {[%emt 0:00:16]} 51. e6 {[%emt 0:00:03]} Kg7 {[%emt 0:00:09]} 52. Kc6 {[%emt 0:00:06]} Re2 {[%emt 0:00:06]} 53. Kd7 {[%emt 0:00:02]} Rd2+ {[%emt 0:00:01]} 54. Ke7 {[%emt 0:00:02]} Ra2 {[%emt 0:00:05]} 55. Rf7+ {[%emt 0:00:10]} Kg6 {[%emt 0:00:04]} 56. Rf6+ {[%emt 0:00:08]} Kg7 {[%emt 0:00:02]} 57. Rf5 {[%emt 0:00:02]} Ra7+ {[%emt 0:00:07]} 58. Kd6 {[%emt 0:00:05]} Ra6+ {[%emt 0:00:02]} 59. Kd5 {[%emt 0:00:02]} Ra5+ {[%emt 0:00:05]} 60. Kc4 {[%emt 0:00:05]} Ra4+ {[%emt 0:00:07]} 61. Kb3 {[%emt 0:00:10]} Re4 {[%emt 0:00:03]} 62. Rxg5+ {[%emt 0:00:02]} Kf6 {[%emt 0:00:03]} 63. Rh5 {[%emt 0:00:04]} Kxe6 {[%emt 0:00:04]} 64. Kc3 {[%emt 0:00:01]} Kf6 {[%emt 0:00:09]} 65. Kd3 {[%emt 0:00:02]} Re1 {[%emt 0:00:05]} 66. Rf5+ {[%emt 0:00:06]} Kg6 {[%emt 0:00:02]} 67. Kd2 {[%emt 0:00:07]} Re4 {[%emt 0:00:07]} 68. Rd5 {[%emt 0:00:12]} Kh6 {[%emt 0:00:05]} 69. Kd3 {[%emt 0:00:10]} Re1 {[%emt 0:00:02]} 70. h4 {[%emt 0:00:07]} Rh1 {[%emt 0:00:11]} 71. Rd6+ {[%emt 0:00:04]} Kg7 {[%emt 0:00:01]} 72. h5 {[%emt 0:00:03]} Re1 {[%emt 0:00:10]} 73. Kd2 {[%emt 0:00:09]} Re5 {[%emt 0:00:03]} 74. Rg6+ {[%emt 0:00:10]} Kh7 {[%emt 0:00:02]} 75. Kd3 {[%emt 0:00:01]} Re1 {[%emt 0:00:07]} 76. Kd4 {[%emt 0:00:01]} Re2 {[%emt 0:00:02]} 77. Kd5 {[%emt 0:00:01]} Re1 {[%emt 0:00:03]} 78. Kd6 {[%emt 0:00:01]} Re2 {[%emt 0:00:03]} 79. Kd7 {[%emt 0:00:01]} Re4 {[%emt 0:00:03]} 80. g5 {[%emt 0:00:05]} Rh4 {[%emt 0:00:10]} 81. Rh6+ {[%emt 0:00:05]} Kg7 {[%emt 0:00:02]} 82. Ke6 {[%emt 0:00:03]} Rh1 {[%emt 0:00:07]} 83. Kf5 {[%emt 0:00:09]} Rf1+ {[%emt 0:00:05]} 84. Ke5 {[%emt 0:00:02]} Re1+ {[%emt 0:00:04]} 85. Kf4 {[%emt 0:00:01]} Rf1+ {[%emt 0:00:03]} 86. Ke3 {[%emt 0:00:04]} Rh1 {[%emt 0:00:08]} 87. Kf3 {[%emt 0:00:07]} Rh2 {[%emt 0:00:09]} 88. Kg3 {[%emt 0:00:05]} Rh1 {[%emt 0:00:01]} 89. Kg2 {[%emt 0:00:10]} Rh4 {[%emt 0:00:02]} 90. Kg3 {[%emt 0:00:05]} Rh1 {[%emt 0:00:02]} 91. Rg6+ {[%emt 0:00:22]} Kh7 {[%emt 0:00:02]} 92. Ra6 {[%emt 0:00:03]} Rxh5 {[%emt 0:00:03]} 93. Kg4 {[%emt 0:00:01]} Rh1 {[%emt 0:00:02]} 94. Ra7+ {[%emt 0:00:01]} Kg6 {[%emt 0:00:04]} 95. Ra6+ {[%emt 0:00:02]} Kg7 {[%emt 0:00:01]} 96. Kf5 {[%emt 0:00:02]} Rf1+ {[%emt 0:00:02]} 97. Kg4 {[%emt 0:00:13]} Rg1+ {[%emt 0:00:03]} 98. Kf5 {[%emt 0:00:01]} Rf1+ {[%emt 0:00:01]} 99. Kg4 {[%emt 0:00:01]} Rg1+ {[%emt 0:00:02]} 100. Kf5 {[%emt 0:00:01]} Rf1+ {[%emt 0:00:01]} 1/2-1/2

[Event "European Online Club-ch-D 2021"]
[Site "Online"]
[Date "2021.03.27"]
[Round "1.16"]
[White "Muminova, Nafisa"]
[Black "Fischer, Daniel"]
[Result "1-0"]
[ECO "B13"]
[WhiteElo "2274"]
[BlackElo "2276"]
[Annotator "NA"]
[PlyCount "165"]
[EventDate "2021.03.27"]
[EventType "team-tourn"]
[EventCountry "NET"]
[SourceTitle "playchess.com"]
[Source "ChessBase"]
[SourceQuality "1"]
[TimeControl "900+5"]

1. d4 {[%emt 0:00:00]} Nf6 {[%emt 0:00:04]} 2. Nc3 {[%emt 0:00:03]} d5 {[%emt 0:00:02]} 3. Bf4 {[%emt 0:00:04]} c5 {[%emt 0:00:07]} 4. e3 {[%emt 0:00:13]} cxd4 {[%emt 0:00:02]} 5. exd4 {[%emt 0:00:02]} a6 {[%emt 0:00:04]} 6. Nf3 {[%emt 0:00:09]} Nc6 {[%emt 0:00:03]} 7. Ne5 {[%emt 0:00:12]} Bd7 {[%emt 0:00:20]} 8. Be2 {[%emt 0:00:35]} e6 {[%emt 0:00:09]} 9. O-O {[%emt 0:00:03]} Nxe5 {[%emt 0:00:54]} 10. dxe5 {[%emt 0:00:22]} Ng8 {[%emt 0:00:07]} 11. Bd3 {[%emt 0:00:10]} Ne7 {[%emt 0:01:21]} 12. Qh5 {[%emt 0:00:49]} g6 {[%emt 0:01:34]} 13. Qe2 {[%emt 0:00:23]} Bg7 {[%emt 0:00:13]} 14. Bg5 {[%emt 0:00:15]} O-O {[%emt 0:01:27]} 15. Kh1 {[%emt 0:00:04]} f6 {[%emt 0:01:48]} 16. exf6 {[%emt 0:00:07]} Bxf6 {[%emt 0:00:00]} 17. Bxf6 {[%emt 0:00:27]} Rxf6 {[%emt 0:00:00]} 18. Rae1 {[%emt 0:00:03]} Qb6 {[%emt 0:00:24]} 19. Nd1 {[%emt 0:00:19]} Raf8 {[%emt 0:00:17]} 20. c3 {[%emt 0:00:25]} Nc6 {[%emt 0:00:30]} 21. Ne3 {[%emt 0:00:10]} Rf4 {[%emt 0:00:54]} 22. Ng4 {[%emt 0:00:14]} h5 {[%emt 0:01:35]} 23. Ne3 {[%emt 0:00:12]} Kg7 {[%emt 0:00:08]} 24. f3 {[%emt 0:00:15]} Qc7 {[%emt 0:00:19]} 25. Qf2 {[%emt 0:00:49]} R4f6 {[%emt 0:00:35]} 26. Qe2 {[%emt 0:00:39]} Qd6 {[%emt 0:00:12]} 27. Nd1 {[%emt 0:01:07]} e5 {[%emt 0:00:20]} 28. Nf2 {[%emt 0:00:04]} Re8 {[%emt 0:00:09]} 29. Bb1 {[%emt 0:00:20]} Nd8 {[%emt 0:01:11]} 30. Qd2 {[%emt 0:00:28]} Nf7 {[%emt 0:00:40]} 31. Rd1 {[%emt 0:00:07]} Bc6 {[%emt 0:00:02]} 32. Rfe1 {[%emt 0:00:15]} Qc5 {[%emt 0:00:18]} 33. Nd3 {[%emt 0:00:37]} Qd6 {[%emt 0:00:08]} 34. Nb4 {[%emt 0:00:14]} Rd8 {[%emt 0:00:02]} 35. a3 {[%emt 0:00:34]} a5 {[%emt 0:00:05]} 36. Nd3 {[%emt 0:00:12]} h4 {[%emt 0:00:10]} 37. Qe2 {[%emt 0:00:25]} Re8 {[%emt 0:00:09]} 38. Nf2 {[%emt 0:00:08]} Qc5 {[%emt 0:00:20]} 39. Ng4 {[%emt 0:00:04]} Rf4 {[%emt 0:00:09]} 40. Qd2 {[%emt 0:00:11]} h3 {[%emt 0:00:35]} 41. Nxe5 {[%emt 0:00:14]} hxg2+ {[%emt 0:00:10]} 42. Kxg2 {[%emt 0:02:42]} Rf6 {[%emt 0:00:22]} 43. Nxc6 {[%emt 0:00:14]} Rxe1 {[%emt 0:00:12]} 44. Rxe1 {[%emt 0:00:05]} bxc6 {[%emt 0:00:07]} 45. Qe3 {[%emt 0:01:03]} Qb5 {[%emt 0:00:07]} 46. Qe2 {[%emt 0:00:12]} Qb3 {[%emt 0:00:05]} 47. Bd3 {[%emt 0:00:41]} a4 {[%emt 0:00:14]} 48. Qd2 {[%emt 0:00:08]} Qb6 {[%emt 0:00:08]} 49. Re7 {[%emt 0:00:09]} Qc5 {[%emt 0:00:03]} 50. Qe3 {[%emt 0:00:11]} Qd6 {[%emt 0:00:05]} 51. Bc2 {[%emt 0:00:11]} c5 {[%emt 0:00:02]} 52. Bxa4 {[%emt 0:00:07]} d4 {[%emt 0:00:01]} 53. cxd4 {[%emt 0:00:05]} cxd4 {[%emt 0:00:00]} 54. Qe4 {[%emt 0:00:14]} d3 {[%emt 0:00:05]} 55. Bd1 {[%emt 0:00:06]} d2 {[%emt 0:00:03]} 56. b4 {[%emt 0:00:12]} Rf4 {[%emt 0:00:03]} 57. Qe3 {[%emt 0:00:12]} Rh4 {[%emt 0:00:09]} 58. h3 {[%emt 0:00:10]} Rh5 {[%emt 0:00:15]} 59. Re6 {[%emt 0:00:22]} Qd5 {[%emt 0:00:04]} 60. Qe4 {[%emt 0:00:25]} Rg5+ {[%emt 0:00:01]} 61. Kf2 {[%emt 0:00:08]} Qd7 {[%emt 0:00:09]} 62. h4 {[%emt 0:00:03]} Qa7+ {[%emt 0:00:02]} 63. Qe3 {[%emt 0:00:04]} Qxe3+ {[%emt 0:00:05]} 64. Kxe3 {[%emt 0:00:03]} Rg2 {[%emt 0:00:01]} 65. Be2 {[%emt 0:00:04]} Nh6 {[%emt 0:00:10]} 66. Kxd2 {[%emt 0:00:05]} Nf5 {[%emt 0:00:01]} 67. a4 {[%emt 0:00:12]} Nd4 {[%emt 0:00:05]} 68. Re3 {[%emt 0:00:04]} Nf5 {[%emt 0:00:06]} 69. Re4 {[%emt 0:00:05]} Ng3 {[%emt 0:00:05]} 70. Re5 {[%emt 0:00:03]} Kf6 {[%emt 0:00:04]} 71. f4 {[%emt 0:00:02]} Nh5 {[%emt 0:00:07]} 72. Re4 {[%emt 0:00:13]} Kf5 {[%emt 0:00:11]} 73. Re8 {[%emt 0:00:04]} Nxf4 {[%emt 0:00:04]} 74. a5 {[%emt 0:00:02]} Rg1 {[%emt 0:00:05]} 75. a6 {[%emt 0:00:04]} Ra1 {[%emt 0:00:02]} 76. b5 {[%emt 0:00:02]} Ra2+ {[%emt 0:00:01]} 77. Kd1 {[%emt 0:00:04]} Nd5 {[%emt 0:00:03]} 78. Bc4 {[%emt 0:00:04]} Nc3+ {[%emt 0:00:02]} 79. Kc1 {[%emt 0:00:03]} Ra5 {[%emt 0:00:06]} 80. Rf8+ {[%emt 0:00:05]} Ke4 {[%emt 0:00:04]} 81. Rb8 {[%emt 0:00:04]} Kd4 {[%emt 0:00:04]} 82. Rc8 {[%emt 0:00:05]} Ra4 {[%emt 0:00:19]} 83. b6 {[%emt 0:00:05]} 1-0

[Event "European Online Club-ch-D 2021"]
[Site "Online"]
[Date "2021.03.27"]
[Round "1.17"]
[White "Gadimbayli, Abdulla"]
[Black "Straka, Vojtech"]
[Result "1-0"]
[ECO "B31"]
[WhiteElo "2470"]
[BlackElo "2417"]
[Annotator "ChessBase"]
[PlyCount "45"]
[EventDate "2021.03.27"]
[EventType "team-tourn"]
[EventCountry "NET"]
[SourceTitle "playchess.com"]
[Source "ChessBase"]
[SourceQuality "1"]
[TimeControl "900+5"]

1. e4 {[%emt 0:00:00]} c5 {[%emt 0:00:04]} 2. Nf3 {[%emt 0:00:05]} Nc6 {[%emt 0:00:02]} 3. Bb5 {[%emt 0:00:02]} g6 {[%emt 0:00:35]} 4. Bxc6 {[%emt 0:00:02]} bxc6 {[%emt 0:00:03]} 5. d4 {[%emt 0:00:02]} d5 {[%emt 0:00:13]} 6. dxc5 {[%emt 0:02:07]} Qa5+ {[%emt 0:00:04]} 7. Bd2 {[%emt 0:00:43]} Qxc5 {[%emt 0:00:12]} 8. Bc3 {[%emt 0:00:02]} f6 {[%emt 0:01:44]} 9. exd5 {[%emt 0:04:40]} cxd5 {[%emt 0:00:23]} 10. O-O {[%emt 0:00:03]} Bg7 {[%emt 0:00:08]} 11. Re1 {[%emt 0:00:20]} e5 {[%emt 0:04:41]} 12. a3 {[%emt 0:00:45]} Ne7 {[%emt 0:02:28]} 13. Bb4 {[%emt 0:00:27]} Qc6 {[%emt 0:00:03]} 14. Nc3 {[%emt 0:00:40]} Be6 {[%emt 0:00:25]} 15. Nd4 {[%emt 0:01:07]} exd4 {[%emt 0:00:39]} 16. Ne2 {[%emt 0:00:02]} Nf5 {[%emt 0:03:04]} 17. Nf4 {[%emt 0:01:15]} O-O-O {[%emt 0:01:22]} 18. Nxe6 {[%emt 0:00:56]} Rde8 {[%emt 0:00:04]} 19. Nxg7 {[%emt 0:01:07]} Rxe1+ {[%emt 0:00:05]} 20. Bxe1 {[%emt 0:00:01]} Nxg7 {[%emt 0:00:03]} 21. Qxd4 {[%emt 0:00:02]} Kb7 {[%emt 0:00:17]} 22. Bc3 {[%emt 0:00:01]} Rf8 {[%emt 0:00:03]} 23. Qb4+ {[%emt 0:00:02]} 1-0

[Event "European Online Club-ch-D 2021"]
[Site "Online"]
[Date "2021.03.27"]
[Round "1.18"]
[White "Roubalik, Jakub"]
[Black "Ibrahimli, Murad"]
[Result "0-1"]
[ECO "D59"]
[WhiteElo "2391"]
[BlackElo "2436"]
[Annotator "NA"]
[PlyCount "78"]
[EventDate "2021.03.27"]
[EventType "team-tourn"]
[EventCountry "NET"]
[SourceTitle "playchess.com"]
[Source "ChessBase"]
[SourceQuality "1"]
[TimeControl "900+5"]

1. d4 {[%emt 0:00:00]} Nf6 {[%emt 0:00:03]} 2. c4 {[%emt 0:00:03]} e6 {[%emt 0:00:02]} 3. Nf3 {[%emt 0:00:04]} d5 {[%emt 0:00:03]} 4. Nc3 {[%emt 0:00:03]} Be7 {[%emt 0:00:01]} 5. Bg5 {[%emt 0:00:06]} O-O {[%emt 0:00:02]} 6. e3 {[%emt 0:00:01]} h6 {[%emt 0:00:02]} 7. Bh4 {[%emt 0:00:20]} b6 {[%emt 0:00:02]} 8. cxd5 {[%emt 0:00:03]} Nxd5 {[%emt 0:00:02]} 9. Bxe7 {[%emt 0:00:03]} Qxe7 {[%emt 0:00:02]} 10. Nxd5 {[%emt 0:00:33]} exd5 {[%emt 0:00:03]} 11. Be2 {[%emt 0:00:04]} Be6 {[%emt 0:00:06]} 12. O-O {[%emt 0:00:15]} c5 {[%emt 0:00:02]} 13. dxc5 {[%emt 0:01:54]} bxc5 {[%emt 0:00:04]} 14. Qa4 {[%emt 0:00:12]} Nd7 {[%emt 0:00:13]} 15. Rac1 {[%emt 0:00:33]} Rfb8 {[%emt 0:00:12]} 16. Bb5 {[%emt 0:01:59]} a5 {[%emt 0:02:13]} 17. Rfd1 {[%emt 0:00:57]} Nf6 {[%emt 0:04:16]} 18. b3 {[%emt 0:02:00]} Bg4 {[%emt 0:00:34]} 19. Bc6 {[%emt 0:00:35]} Rb4 {[%emt 0:00:09]} 20. Qa3 {[%emt 0:00:56]} Ra6 {[%emt 0:03:37]} 21. Bxd5 {[%emt 0:00:15]} Nxd5 {[%emt 0:00:10]} 22. Rxd5 {[%emt 0:00:04]} Bxf3 {[%emt 0:00:01]} 23. gxf3 {[%emt 0:00:05]} Qe6 {[%emt 0:00:48]} 24. Rd8+ {[%emt 0:01:32]} Kh7 {[%emt 0:00:03]} 25. Kf1 {[%emt 0:00:03]} Qh3+ {[%emt 0:00:02]} 26. Ke2 {[%emt 0:00:09]} Rf6 {[%emt 0:00:03]} 27. f4 {[%emt 0:00:34]} Qg4+ {[%emt 0:00:36]} 28. Kf1 {[%emt 0:01:03]} Qf3 {[%emt 0:01:11]} 29. Qb2 {[%emt 0:00:53]} Re4 {[%emt 0:00:24]} 30. Qc2 {[%emt 0:00:30]} Rfxf4 {[%emt 0:00:43]} 31. Re8 {[%emt 0:00:53]} f5 {[%emt 0:00:45]} 32. Rxe4 {[%emt 0:00:06]} Rxe4 {[%emt 0:00:02]} 33. Qxc5 {[%emt 0:00:07]} Rh4 {[%emt 0:00:15]} 34. Qc7 {[%emt 0:00:27]} Qh5 {[%emt 0:00:22]} 35. Kg1 {[%emt 0:00:19]} a4 {[%emt 0:00:17]} 36. bxa4 {[%emt 0:00:02]} Rxa4 {[%emt 0:00:03]} 37. Rc4 {[%emt 0:00:14]} Rxa2 {[%emt 0:00:15]} 38. Kg2 {[%emt 0:00:07]} Ra6 {[%emt 0:00:04]} 39. Qe5 {[%emt 0:00:04]} Rg6+ {[%emt 0:00:02]} 0-1